[Event "8. Arber-Schachopen 2019"]
[Site "Bodenmais"]
[Date "2019.07.29"]
[Round "3.7"]
[White "Rotstein, Arkadij"]
[Black "Beck, Gerald"]
[Result "1-0"]
[ECO "A06"]
[WhiteElo "2471"]
[BlackElo "2176"]
[Annotator "ChessBase"]
[PlyCount "69"]
[EventDate "2019.07.27"]
[EventCountry "GER"]
[SourceTitle "playchess.com"]
[Source "ChessBase"]
[SourceQuality "1"]
[TimeControl "40/5400+30:1800+30"]

1. Nf3 {[%emt 0:00:40]} d5 {[%emt 0:00:32]} 2. e3 {[%emt 0:00:17]} Nf6 {[%emt 0:03:20]} 3. c4 {[%emt 0:00:10]} e6 {[%emt 0:03:12]} 4. Nc3 {[%emt 0:01:10]} Be7 {[%emt 0:06:54]} 5. b3 {[%emt 0:00:41]} c5 {[%emt 0:05:07]} 6. cxd5 {[%emt 0:00:33]} exd5 {[%emt 0:05:35]} 7. d4 {[%emt 0:01:55]} Nc6 {[%emt 0:06:19]} 8. Bb2 {[%emt 0:02:30]} O-O {[%emt 0:07:50]} 9. Be2 {[%emt 0:02:30]} Bf5 {[%emt 0:14:48]} 10. O-O {[%emt 0:04:31]} Rc8 {[%emt 0:04:43]} 11. Rc1 {[%emt 0:02:16]} b6 {[%emt 0:04:39]} 12. Ne5 {[%emt 0:04:57]} cxd4 {[%emt 0:04:23]} 13. Nxc6 {[%emt 0:01:24]} Rxc6 {[%emt 0:02:38]} 14. Qxd4 {[%emt 0:00:09]} Bc5 {[%emt 0:08:43]} 15. Qf4 {[%emt 0:00:47]} Qc8 {[%emt 0:02:20]} 16. Nb5 {[%emt 0:01:30]} Qd7 {[%emt 0:03:23]} 17. b4 {[%emt 0:03:42]} Bd6 {[%emt 0:00:44]} 18. Nxd6 {[%emt 0:00:10]} Rxd6 {[%emt 0:00:15]} 19. Be5 {[%emt 0:00:25]} Ne4 {[%emt 0:02:19]} 20. Bxd6 {[%emt 0:00:18]} Nxd6 {[%emt 0:00:05]} 21. Rfd1 {[%emt 0:00:56]} Be6 {[%emt 0:01:15]} 22. Bf3 {[%emt 0:00:21]} Rc8 {[%emt 0:02:01]} 23. Rxc8+ {[%emt 0:00:42]} Nxc8 {[%emt 0:00:06]} 24. Bxd5 {[%emt 0:03:51]} g6 {[%emt 0:04:05]} 25. Bb3 {[%emt 0:01:24]} Qe7 {[%emt 0:01:44]} 26. Bxe6 {[%emt 0:01:25]} Qxe6 {[%emt 0:00:32]} 27. Rd8+ {[%emt 0:00:16]} Kg7 {[%emt 0:00:08]} 28. Qd4+ {[%emt 0:00:09]} Kh6 {[%emt 0:00:59]} 29. Rg8 {[%emt 0:02:27]} Kh5 {[%emt 0:00:29]} 30. g3 {[%emt 0:00:32]} g5 {[%emt 0:02:30]} 31. h4 {[%emt 0:01:20]} f6 {[%emt 0:01:10]} 32. Qd1+ {[%emt 0:00:19]} Kh6 {[%emt 0:01:35]} 33. Qd5 {[%emt 0:00:00]} Ne7 {[%emt 0:00:03]} 34. Qd8 {[%emt 0:00:30]} Qd5 {[%emt 0:00:47]} 35. Re8 {[%emt 0:00:13]} 1-0

[Event "8. Arber-Schachopen 2019"]
[Site "Bodenmais"]
[Date "2019.07.29"]
[Round "3.8"]
[White "Schelle, Artur"]
[Black "Hoffmann, Michael"]
[Result "1/2-1/2"]
[ECO "D02"]
[WhiteElo "2176"]
[BlackElo "2438"]
[Annotator "ChessBase"]
[PlyCount "113"]
[EventDate "2019.07.27"]
[EventCountry "GER"]
[SourceTitle "playchess.com"]
[Source "ChessBase"]
[SourceQuality "1"]
[TimeControl "40/5400+30:1800+30"]

1. d4 {[%emt 0:00:00]} Nf6 {[%emt 0:00:16]} 2. Nf3 {[%emt 0:00:00]} d5 {[%emt 0:02:34]} 3. Bf4 {[%emt 0:00:22]} c5 {[%emt 0:01:58]} 4. e3 {[%emt 0:00:27]} cxd4 {[%emt 0:01:15]} 5. exd4 {[%emt 0:00:07]} Nc6 {[%emt 0:00:22]} 6. c3 {[%emt 0:00:20]} Bf5 {[%emt 0:02:40]} 7. Nbd2 {[%emt 0:04:53]} e6 {[%emt 0:01:01]} 8. Qb3 {[%emt 0:00:44]} Qc8 {[%emt 0:01:40]} 9. Nh4 {[%emt 0:01:34]} Be4 {[%emt 0:02:28]} 10. Nxe4 {[%emt 0:03:12]} Nxe4 {[%emt 0:05:19]} 11. Nf3 {[%emt 0:07:14]} Bd6 {[%emt 0:01:42]} 12. Bxd6 {[%emt 0:07:24]} Nxd6 {[%emt 0:00:35]} 13. Bd3 {[%emt 0:00:04]} O-O {[%emt 0:00:48]} 14. O-O {[%emt 0:01:49]} Qc7 {[%emt 0:02:06]} 15. Rfe1 {[%emt 0:04:57]} b5 {[%emt 0:05:02]} 16. Qd1 {[%emt 0:00:54]} h6 {[%emt 0:05:30]} 17. Rc1 {[%emt 0:02:57]} Rfc8 {[%emt 0:08:28]} 18. Bb1 {[%emt 0:00:50]} Rab8 {[%emt 0:04:16]} 19. Qd3 {[%emt 0:06:55]} Ne4 {[%emt 0:03:07]} 20. Qe2 {[%emt 0:11:09]} Nf6 {[%emt 0:03:45]} 21. a3 {[%emt 0:03:11]} a5 {[%emt 0:00:51]} 22. Bd3 {[%emt 0:04:12]} Qb6 {[%emt 0:04:40]} 23. b4 {[%emt 0:01:08]} Rc7 {[%emt 0:02:02]} 24. h3 {[%emt 0:01:05]} Ne7 {[%emt 0:03:53]} 25. Ne5 {[%emt 0:05:51]} Nc8 {[%emt 0:01:51]} 26. Ng4 {[%emt 0:01:35]} Nxg4 {[%emt 0:02:20]} 27. hxg4 {[%emt 0:00:32]} Nd6 {[%emt 0:01:40]} 28. g5 {[%emt 0:00:26]} hxg5 {[%emt 0:01:19]} 29. Qh5 {[%emt 0:01:30]} Rbc8 {[%emt 0:02:50]} 30. Re3 {[%emt 0:05:43]} axb4 {[%emt 0:02:00]} 31. axb4 {[%emt 0:00:24]} Kf8 {[%emt 0:08:00]} 32. Qh8+ {[%emt 0:10:34]} Ke7 {[%emt 0:00:02]} 33. Qxg7 {[%emt 0:00:04]} Rxc3 {[%emt 0:01:43]} 34. Rce1 {[%emt 0:04:20]} Ne4 {[%emt 0:03:18]} 35. Rf3 {[%emt 0:04:00]} Nd6 {[%emt 0:01:15]} 36. Rfe3 {[%emt 0:00:22]} Ne4 {[%emt 0:00:19]} 37. Rf3 {[%emt 0:00:01]} Nd6 {[%emt 0:00:08]} 38. Qxg5+ {[%emt 0:04:02]} Kd7 {[%emt 0:01:26]} 39. Qg7 {[%emt 0:02:26]} Re8 {[%emt 0:04:01]} 40. Qe5 {[%emt 0:02:05]} Re7 {[%emt 0:02:58]} 41. Rb1 {[%emt 0:11:05]} Nc4 {[%emt 0:02:04]} 42. Bxc4 {[%emt 0:03:03]} Rxc4 {[%emt 0:02:43]} 43. Rd3 {[%emt 0:04:33]} Qd6 {[%emt 0:03:35]} 44. Qe1 {[%emt 0:00:13]} Re8 {[%emt 0:02:32]} 45. Qd2 {[%emt 0:00:29]} Rh8 {[%emt 0:02:34]} 46. Rh3 {[%emt 0:01:06]} Rxh3 {[%emt 0:01:04]} 47. gxh3 {[%emt 0:00:01]} e5 {[%emt 0:02:16]} 48. dxe5 {[%emt 0:00:33]} Qg6+ {[%emt 0:01:25]} 49. Kh2 {[%emt 0:00:44]} Qxb1 {[%emt 0:00:22]} 50. Qxd5+ {[%emt 0:00:24]} Kc8 {[%emt 0:09:21]} 51. Qa8+ {[%emt 0:00:53]} Kc7 {[%emt 0:00:36]} 52. Qa7+ {[%emt 0:03:13]} Kd8 {[%emt 0:01:06]} 53. Qb8+ {[%emt 0:04:20]} Rc8 {[%emt 0:00:31]} 54. Qd6+ {[%emt 0:00:11]} Ke8 {[%emt 0:00:10]} 55. e6 {[%emt 0:00:05]} fxe6 {[%emt 0:00:54]} 56. Qxe6+ {[%emt 0:00:10]} Kd8 {[%emt 0:00:04]} 57. Qd6+ 1/2-1/2

[Event "8. Arber-Schachopen 2019"]
[Site "Bodenmais"]
[Date "2019.07.29"]
[Round "3.9"]
[White "Bogdanov, Egor"]
[Black "Fauth, Dietmar"]
[Result "1-0"]
[ECO "B22"]
[WhiteElo "2407"]
[BlackElo "2122"]
[Annotator "ChessBase"]
[PlyCount "67"]
[EventDate "2019.07.27"]
[EventCountry "GER"]
[SourceTitle "playchess.com"]
[Source "ChessBase"]
[SourceQuality "1"]
[TimeControl "40/5400+30:1800+30"]

1. e4 {[%emt 0:03:19]} c5 {[%emt 0:00:00]} 2. c3 {[%emt 0:00:08]} Nf6 {[%emt 0:00:04]} 3. e5 {[%emt 0:00:05]} Nd5 {[%emt 0:00:08]} 4. d4 {[%emt 0:00:02]} cxd4 {[%emt 0:00:12]} 5. Nf3 {[%emt 0:00:03]} e6 {[%emt 0:00:37]} 6. cxd4 {[%emt 0:00:05]} d6 {[%emt 0:00:39]} 7. Nc3 {[%emt 0:00:07]} Nxc3 {[%emt 0:00:51]} 8. bxc3 {[%emt 0:00:05]} Qc7 {[%emt 0:00:45]} 9. Bd2 {[%emt 0:00:06]} Nd7 {[%emt 0:01:41]} 10. Bd3 {[%emt 0:05:07]} dxe5 {[%emt 0:06:30]} 11. O-O {[%emt 0:00:08]} Bd6 {[%emt 0:01:55]} 12. Re1 {[%emt 0:01:39]} O-O {[%emt 0:01:25]} 13. Qe2 {[%emt 0:15:46]} exd4 {[%emt 0:06:06]} 14. Qe4 {[%emt 0:03:06]} g6 {[%emt 0:12:58]} 15. cxd4 {[%emt 0:07:16]} Re8 {[%emt 0:11:16]} 16. Qh4 {[%emt 0:01:10]} Be7 {[%emt 0:06:45]} 17. Ng5 {[%emt 0:01:46]} Nf8 {[%emt 0:06:40]} 18. Re3 {[%emt 0:05:03]} Bd7 {[%emt 0:03:58]} 19. Rf3 {[%emt 0:16:16]} f5 {[%emt 0:09:46]} 20. Rg3 {[%emt 0:04:06]} Bf6 {[%emt 0:01:54]} 21. Rc1 {[%emt 0:04:52]} Qd8 {[%emt 0:04:28]} 22. Bb4 {[%emt 0:06:46]} Rc8 {[%emt 0:01:55]} 23. Re1 {[%emt 0:00:56]} a6 {[%emt 0:01:35]} 24. Qh6 {[%emt 0:00:22]} Bg7 {[%emt 0:00:58]} 25. Qh3 {[%emt 0:03:41]} h6 {[%emt 0:01:54]} 26. Nf3 {[%emt 0:00:27]} f4 {[%emt 0:01:55]} 27. Rxg6 {[%emt 0:00:14]} e5 {[%emt 0:01:59]} 28. Qxh6 {[%emt 0:00:36]} Nxg6 {[%emt 0:02:32]} 29. Qxg6 {[%emt 0:00:02]} Rc6 {[%emt 0:05:25]} 30. Qh7+ {[%emt 0:00:21]} Kf7 {[%emt 0:00:17]} 31. Qh5+ {[%emt 0:00:04]} Kg8 {[%emt 0:00:38]} 32. Bh7+ {[%emt 0:00:15]} Kh8 {[%emt 0:00:39]} 33. Bg6+ {[%emt 0:00:07]} Kg8 {[%emt 0:00:06]} 34. Bf7# {[%emt 0:00:13]} 1-0

[Event "8. Arber-Schachopen 2019"]
[Site "Bodenmais"]
[Date "2019.07.29"]
[Round "3.10"]
[White "Hoffmann, Tim"]
[Black "Sergeev, Vladimir"]
[Result "1/2-1/2"]
[ECO "B03"]
[WhiteElo "2147"]
[BlackElo "2415"]
[Annotator "ChessBase"]
[PlyCount "91"]
[EventDate "2019.07.27"]
[EventCountry "GER"]
[SourceTitle "playchess.com"]
[Source "ChessBase"]
[SourceQuality "1"]
[TimeControl "40/5400+30:1800+30"]

1. e4 {[%emt 0:00:00]} Nf6 {[%emt 0:04:59]} 2. e5 {[%emt 0:00:00]} Nd5 {[%emt 0:00:02]} 3. d4 {[%emt 0:00:13]} d6 {[%emt 0:00:06]} 4. c4 {[%emt 0:00:19]} Nb6 {[%emt 0:00:05]} 5. exd6 {[%emt 0:00:18]} exd6 {[%emt 0:00:06]} 6. Nc3 {[%emt 0:02:11]} Nc6 {[%emt 0:00:10]} 7. Be3 {[%emt 0:04:35]} Be7 {[%emt 0:00:28]} 8. h3 {[%emt 0:00:35]} O-O {[%emt 0:00:34]} 9. Nf3 {[%emt 0:00:28]} Bf6 {[%emt 0:01:10]} 10. Qd2 {[%emt 0:03:05]} Re8 {[%emt 0:01:11]} 11. O-O-O {[%emt 0:01:13]} d5 {[%emt 0:00:37]} 12. c5 {[%emt 0:08:40]} Nc4 {[%emt 0:01:21]} 13. Bxc4 {[%emt 0:02:15]} dxc4 {[%emt 0:00:31]} 14. Qe2 {[%emt 0:03:43]} b5 {[%emt 0:12:59]} 15. cxb6 {[%emt 0:24:05]} axb6 {[%emt 0:00:42]} 16. Qxc4 {[%emt 0:01:21]} Bb7 {[%emt 0:11:49]} 17. Bf4 {[%emt 0:02:55]} Re7 {[%emt 0:20:29]} 18. Rhg1 {[%emt 0:16:38]} Na5 {[%emt 0:00:59]} 19. Qd3 {[%emt 0:00:22]} Rd7 {[%emt 0:10:32]} 20. Ne5 {[%emt 0:02:23]} Bxe5 {[%emt 0:02:24]} 21. Bxe5 {[%emt 0:00:18]} f6 {[%emt 0:05:05]} 22. Bf4 {[%emt 0:01:49]} Nc6 {[%emt 0:02:21]} 23. Be3 {[%emt 0:01:59]} Kh8 {[%emt 0:01:06]} 24. a3 {[%emt 0:00:58]} Qg8 {[%emt 0:05:16]} 25. g4 {[%emt 0:04:34]} Nxd4 {[%emt 0:08:49]} 26. Bxd4 {[%emt 0:00:51]} c5 {[%emt 0:00:01]} 27. Qb5 {[%emt 0:01:01]} Rxd4 {[%emt 0:00:02]} 28. Qxb6 {[%emt 0:00:31]} Bf3 {[%emt 0:00:08]} 29. Rxd4 {[%emt 0:00:24]} cxd4 {[%emt 0:00:07]} 30. Qxd4 {[%emt 0:00:17]} Rc8 {[%emt 0:06:27]} 31. Re1 {[%emt 0:02:09]} h6 {[%emt 0:00:52]} 32. Kb1 {[%emt 0:00:43]} Bc6 {[%emt 0:01:25]} 33. h4 {[%emt 0:02:00]} Be8 {[%emt 0:00:40]} 34. g5 {[%emt 0:00:34]} Bg6+ {[%emt 0:00:25]} 35. Ka1 {[%emt 0:00:40]} Rd8 {[%emt 0:02:32]} 36. Qf4 {[%emt 0:02:23]} fxg5 {[%emt 0:00:10]} 37. hxg5 {[%emt 0:00:09]} h5 {[%emt 0:00:05]} 38. Rd1 {[%emt 0:01:59]} Rxd1+ {[%emt 0:00:50]} 39. Nxd1 {[%emt 0:00:05]} Qd5 {[%emt 0:00:19]} 40. Ne3 {[%emt 0:07:44]} Qd3 {[%emt 0:00:58]} 41. Ka2 {[%emt 0:30:51]} Kg8 {[%emt 0:03:21]} 42. Qb8+ {[%emt 0:00:00]} Kh7 {[%emt 0:00:55]} 43. Qf4 {[%emt 0:00:00]} Kg8 {[%emt 0:07:59]} 44. Qb8+ {[%emt 0:00:00]} Kh7 {[%emt 0:00:11]} 45. Qf4 {[%emt 0:00:00]} Kg8 {[%emt 0:01:11]} 46. Qb8+ {[%emt 0:00:00]} 1/2-1/2

[Event "8. Arber-Schachopen 2019"]
[Site "Bodenmais"]
[Date "2019.07.29"]
[Round "3.11"]
[White "Poetz, Florian"]
[Black "Schmahl, Stephan"]
[Result "1-0"]
[ECO "C02"]
[WhiteElo "2389"]
[BlackElo "2101"]
[Annotator "NA"]
[PlyCount "57"]
[EventDate "2019.07.27"]
[EventCountry "GER"]
[SourceTitle "playchess.com"]
[Source "ChessBase"]
[SourceQuality "1"]
[TimeControl "40/5400+30:1800+30"]

1. e4 {[%emt 0:04:28]} e6 {[%emt 0:00:00]} 2. d4 {[%emt 0:00:51]} d5 {[%emt 0:00:00]} 3. e5 {[%emt 0:00:28]} c5 {[%emt 0:00:00]} 4. c3 {[%emt 0:00:07]} Nc6 {[%emt 0:00:00]} 5. Nf3 {[%emt 0:00:06]} Qb6 {[%emt 0:00:00]} 6. a3 {[%emt 0:00:33]} Nh6 {[%emt 0:00:12]} 7. b4 {[%emt 0:01:26]} cxd4 {[%emt 0:00:04]} 8. Bxh6 {[%emt 0:00:36]} gxh6 {[%emt 0:00:06]} 9. cxd4 {[%emt 0:00:05]} Bd7 {[%emt 0:03:22]} 10. Ra2 {[%emt 0:00:38]} Rc8 {[%emt 0:07:50]} 11. Be2 {[%emt 0:00:50]} Bg7 {[%emt 0:10:11]} 12. O-O {[%emt 0:01:15]} O-O {[%emt 0:00:07]} 13. b5 {[%emt 0:00:51]} Na5 {[%emt 0:19:41]} 14. a4 {[%emt 0:01:06]} Rc7 {[%emt 0:05:16]} 15. Na3 {[%emt 0:00:53]} Rfc8 {[%emt 0:00:50]} 16. Nc2 {[%emt 0:00:40]} Nc4 {[%emt 0:06:41]} 17. Nce1 {[%emt 0:16:15]} f6 {[%emt 0:08:32]} 18. exf6 {[%emt 0:02:27]} Bxf6 {[%emt 0:00:08]} 19. Nd3 {[%emt 0:01:52]} Bxd4 {[%emt 0:05:08]} 20. a5 {[%emt 0:00:35]} Nxa5 {[%emt 0:15:22]} 21. Nxd4 {[%emt 0:01:31]} Qxd4 {[%emt 0:00:04]} 22. Rxa5 {[%emt 0:00:09]} Rc3 {[%emt 0:02:15]} 23. g3 {[%emt 0:17:09]} b6 {[%emt 0:06:42]} 24. Ra4 {[%emt 0:03:09]} R8c4 {[%emt 0:00:03]} 25. Rxa7 {[%emt 0:00:24]} Bxb5 {[%emt 0:00:47]} 26. Nb2 {[%emt 0:01:00]} Rc1 {[%emt 0:05:44]} 27. Qxc1 {[%emt 0:01:59]} Rxc1 {[%emt 0:01:00]} 28. Rxc1 {[%emt 0:00:04]} Bc4 {[%emt 0:01:00]} 29. Nxc4 {[%emt 0:00:11]} 1-0

[Event "8. Arber-Schachopen 2019"]
[Site "Bodenmais"]
[Date "2019.07.29"]
[Round "3.12"]
[White "Fuchs, Michael"]
[Black "Hopman, Pieter"]
[Result "0-1"]
[ECO "B00"]
[WhiteElo "2114"]
[BlackElo "2347"]
[Annotator "NA"]
[PlyCount "82"]
[EventDate "2019.07.27"]
[EventCountry "GER"]
[SourceTitle "playchess.com"]
[Source "ChessBase"]
[SourceQuality "1"]
[TimeControl "40/5400+30:1800+30"]

1. e4 {[%emt 0:00:00]} d6 {[%emt 0:00:00]} 2. d4 {[%emt 0:00:00]} Nf6 {[%emt 0:00:00]} 3. Bd3 {[%emt 0:00:00]} e5 {[%emt 0:00:06]} 4. c3 {[%emt 0:00:55]} Nbd7 {[%emt 0:00:32]} 5. Nf3 {[%emt 0:00:40]} d5 {[%emt 0:00:35]} 6. dxe5 {[%emt 0:04:49]} dxe4 {[%emt 0:00:45]} 7. exf6 {[%emt 0:00:23]} exf3 {[%emt 0:00:31]} 8. Qxf3 {[%emt 0:07:43]} Ne5 {[%emt 0:01:42]} 9. Bb5+ {[%emt 0:00:07]} c6 {[%emt 0:05:12]} 10. Qe4 {[%emt 0:01:43]} Qxf6 {[%emt 0:05:02]} 11. f4 {[%emt 0:11:48]} cxb5 {[%emt 0:06:50]} 12. Qxe5+ {[%emt 0:01:56]} Qxe5+ {[%emt 0:01:55]} 13. fxe5 {[%emt 0:00:06]} Bc5 {[%emt 0:02:57]} 14. Nd2 {[%emt 0:04:50]} Bf5 {[%emt 0:12:26]} 15. Nb3 {[%emt 0:02:14]} Bb6 {[%emt 0:00:47]} 16. Nd4 {[%emt 0:00:18]} Bd7 {[%emt 0:00:27]} 17. Be3 {[%emt 0:03:40]} O-O {[%emt 0:01:14]} 18. O-O-O {[%emt 0:01:10]} Rfe8 {[%emt 0:04:09]} 19. Bf4 {[%emt 0:01:20]} b4 {[%emt 0:02:04]} 20. Nc2 {[%emt 0:07:51]} Bg4 {[%emt 0:00:53]} 21. Nxb4 {[%emt 0:01:30]} Bxd1 {[%emt 0:00:49]} 22. Rxd1 {[%emt 0:00:24]} Bc7 {[%emt 0:00:59]} 23. Nd3 {[%emt 0:02:39]} Rad8 {[%emt 0:03:47]} 24. Kc2 {[%emt 0:02:38]} f6 {[%emt 0:01:13]} 25. exf6 {[%emt 0:00:53]} Bxf4 {[%emt 0:05:22]} 26. Nxf4 {[%emt 0:00:15]} Rxd1 {[%emt 0:00:50]} 27. Kxd1 {[%emt 0:00:05]} gxf6 {[%emt 0:01:32]} 28. Kd2 {[%emt 0:01:40]} Kf7 {[%emt 0:00:16]} 29. g3 {[%emt 0:00:51]} Rd8+ {[%emt 0:01:54]} 30. Kc2 {[%emt 0:01:56]} Ke7 {[%emt 0:02:58]} 31. c4 {[%emt 0:04:19]} Kd6 {[%emt 0:00:17]} 32. Nd3 {[%emt 0:02:20]} h5 {[%emt 0:00:53]} 33. c5+ {[%emt 0:01:14]} Kc6 {[%emt 0:01:32]} 34. Kc3 {[%emt 0:06:10]} Re8 {[%emt 0:00:35]} 35. Nf4 {[%emt 0:01:10]} h4 {[%emt 0:02:00]} 36. Nh5 {[%emt 0:05:18]} h3 {[%emt 0:02:32]} 37. Kd3 {[%emt 0:06:27]} f5 {[%emt 0:01:52]} 38. b4 {[%emt 0:03:41]} Re4 {[%emt 0:00:26]} 39. a3 {[%emt 0:00:37]} a5 {[%emt 0:00:34]} 40. bxa5 {[%emt 0:04:39]} Ra4 {[%emt 0:00:32]} 41. Nf4 {[%emt 0:30:43]} Kxc5 {[%emt 0:30:30]} 0-1

[Event "8. Arber-Schachopen 2019"]
[Site "Bodenmais"]
[Date "2019.07.29"]
[Round "3.13"]
[White "Hausner, Ivan"]
[Black "Seifert, Ronny"]
[Result "1-0"]
[ECO "D09"]
[WhiteElo "2370"]
[BlackElo "1888"]
[Annotator "ChessBase"]
[PlyCount "99"]
[EventDate "2019.07.27"]
[EventCountry "GER"]
[SourceTitle "playchess.com"]
[Source "ChessBase"]
[SourceQuality "1"]
[TimeControl "40/5400+30:1800+30"]

1. d4 {[%emt 0:00:00]} d5 {[%emt 0:00:08]} 2. c4 {[%emt 0:00:00]} e5 {[%emt 0:00:23]} 3. dxe5 {[%emt 0:00:00]} d4 {[%emt 0:00:08]} 4. Nf3 {[%emt 0:00:00]} Nc6 {[%emt 0:00:23]} 5. g3 {[%emt 0:00:14]} Bg4 {[%emt 0:01:00]} 6. Bg2 {[%emt 0:00:08]} Qd7 {[%emt 0:00:35]} 7. Nbd2 {[%emt 0:00:52]} Nge7 {[%emt 0:01:32]} 8. a3 {[%emt 0:01:16]} Ng6 {[%emt 0:05:18]} 9. O-O {[%emt 0:01:01]} Be7 {[%emt 0:03:50]} 10. b4 {[%emt 0:00:14]} O-O {[%emt 0:12:00]} 11. Bb2 {[%emt 0:00:08]} Bh3 {[%emt 0:04:26]} 12. b5 {[%emt 0:02:45]} Ncxe5 {[%emt 0:02:00]} 13. Bxd4 {[%emt 0:00:58]} Nxf3+ {[%emt 0:03:25]} 14. Nxf3 {[%emt 0:00:18]} Bxg2 {[%emt 0:02:09]} 15. Kxg2 {[%emt 0:00:05]} Rfd8 {[%emt 0:01:36]} 16. e3 {[%emt 0:02:39]} Qe6 {[%emt 0:04:27]} 17. Qc2 {[%emt 0:01:35]} Bf6 {[%emt 0:04:30]} 18. Rfd1 {[%emt 0:02:19]} Ne5 {[%emt 0:04:26]} 19. Nxe5 {[%emt 0:01:04]} Bxe5 {[%emt 0:00:04]} 20. Qe4 {[%emt 0:01:11]} Bxd4 {[%emt 0:03:19]} 21. Qxe6 {[%emt 0:00:07]} fxe6 {[%emt 0:00:07]} 22. Rxd4 {[%emt 0:00:06]} Rxd4 {[%emt 0:02:20]} 23. exd4 {[%emt 0:00:05]} Rd8 {[%emt 0:00:52]} 24. Rd1 {[%emt 0:00:05]} c6 {[%emt 0:03:00]} 25. a4 {[%emt 0:01:05]} cxb5 {[%emt 0:12:35]} 26. axb5 {[%emt 0:00:05]} Rc8 {[%emt 0:01:46]} 27. c5 {[%emt 0:01:09]} e5 {[%emt 0:03:18]} 28. dxe5 {[%emt 0:00:27]} Rxc5 {[%emt 0:01:01]} 29. e6 {[%emt 0:00:06]} Kf8 {[%emt 0:02:23]} 30. b6 {[%emt 0:00:06]} axb6 {[%emt 0:01:32]} 31. Rd8+ {[%emt 0:00:08]} Ke7 {[%emt 0:00:10]} 32. Rd7+ {[%emt 0:00:07]} Kxe6 {[%emt 0:00:42]} 33. Rxg7 {[%emt 0:00:05]} h5 {[%emt 0:02:01]} 34. Rg6+ {[%emt 0:00:14]} Kd7 {[%emt 0:00:12]} 35. Rxb6 Kc7 36. Rb2 {[%emt 0:01:30]} b5 {[%emt 0:01:50]} 37. h3 {[%emt 0:00:07]} Kc6 {[%emt 0:00:32]} 38. g4 {[%emt 0:00:05]} h4 {[%emt 0:01:03]} 39. Rb4 {[%emt 0:01:16]} Rd5 {[%emt 0:03:42]} 40. Kf3 {[%emt 0:10:50]} Rd3+ {[%emt 0:11:15]} 41. Kg2 {[%emt 0:33:23]} Rd5 {[%emt 0:31:02]} 42. Rb2 {[%emt 0:03:41]} Kc5 {[%emt 0:00:00]} 43. f4 {[%emt 0:00:00]} Kc4 {[%emt 0:00:00]} 44. f5 {[%emt 0:00:00]} b4 {[%emt 0:00:00]} 45. f6 {[%emt 0:00:00]} Rd8 {[%emt 0:00:00]} 46. Kf3 {[%emt 0:00:00]} Kc3 {[%emt 0:00:00]} 47. Rb1 {[%emt 0:00:00]} b3 {[%emt 0:00:00]} 48. g5 {[%emt 0:00:00]} Kc2 {[%emt 0:00:00]} 49. Rxb3 {[%emt 0:00:00]} Kxb3 {[%emt 0:00:00]} 50. f7 {[%emt 0:00:00]} 1-0

[Event "8. Arber-Schachopen 2019"]
[Site "Bodenmais"]
[Date "2019.07.29"]
[Round "3.14"]
[White "Bielmeier, Ludwig"]
[Black "Schleining, Zoya"]
[Result "0-1"]
[ECO "A00"]
[WhiteElo "2083"]
[BlackElo "2339"]
[Annotator "ChessBase"]
[PlyCount "126"]
[EventDate "2019.07.27"]
[EventCountry "GER"]
[SourceTitle "playchess.com"]
[Source "ChessBase"]
[SourceQuality "1"]
[TimeControl "40/5400+30:1800+30"]

1. g3 {[%emt 0:10:44]} d5 {[%emt 0:00:00]} 2. Bg2 {[%emt 0:00:43]} e5 {[%emt 0:00:29]} 3. Nf3 {[%emt 0:00:55]} Nc6 {[%emt 0:00:30]} 4. O-O {[%emt 0:00:10]} Nf6 {[%emt 0:04:34]} 5. d3 {[%emt 0:00:56]} Be7 {[%emt 0:01:53]} 6. b3 {[%emt 0:02:54]} O-O {[%emt 0:06:09]} 7. Bb2 {[%emt 0:01:34]} d4 {[%emt 0:00:41]} 8. c3 {[%emt 0:02:52]} Re8 {[%emt 0:01:54]} 9. Nbd2 {[%emt 0:06:37]} Bf8 {[%emt 0:12:55]} 10. Rc1 {[%emt 0:12:01]} a5 {[%emt 0:11:08]} 11. cxd4 {[%emt 0:04:10]} Nxd4 {[%emt 0:00:50]} 12. e3 {[%emt 0:08:10]} Nxf3+ {[%emt 0:00:51]} 13. Nxf3 {[%emt 0:00:23]} Bd6 {[%emt 0:01:00]} 14. d4 {[%emt 0:05:29]} e4 {[%emt 0:01:50]} 15. Ne5 {[%emt 0:01:11]} Be6 {[%emt 0:09:47]} 16. Qc2 {[%emt 0:04:17]} Bd5 {[%emt 0:01:16]} 17. Rfd1 {[%emt 0:06:09]} c6 {[%emt 0:00:19]} 18. Nc4 {[%emt 0:09:13]} Bc7 {[%emt 0:00:54]} 19. a4 {[%emt 0:00:34]} h5 {[%emt 0:02:40]} 20. Ba3 {[%emt 0:07:25]} h4 {[%emt 0:04:56]} 21. Qe2 {[%emt 0:00:20]} Be6 {[%emt 0:04:11]} 22. Qc2 {[%emt 0:00:18]} Bg4 {[%emt 0:03:54]} 23. Re1 {[%emt 0:01:09]} Qd7 {[%emt 0:04:15]} 24. Nd2 {[%emt 0:00:14]} Bf5 {[%emt 0:02:36]} 25. Qb1 {[%emt 0:01:21]} Qe6 {[%emt 0:04:49]} 26. Qc2 {[%emt 0:00:55]} hxg3 {[%emt 0:01:30]} 27. hxg3 {[%emt 0:01:35]} Rad8 {[%emt 0:02:13]} 28. Qc4 {[%emt 0:00:13]} Rd5 {[%emt 0:00:35]} 29. Qf1 {[%emt 0:00:34]} Bg4 {[%emt 0:07:12]} 30. Rc5 {[%emt 0:00:44]} Rxc5 {[%emt 0:01:30]} 31. Bxc5 {[%emt 0:00:56]} Qf5 {[%emt 0:01:05]} 32. Rc1 {[%emt 0:01:37]} Re6 {[%emt 0:01:11]} 33. Ba3 {[%emt 0:01:46]} Nd5 {[%emt 0:01:20]} 34. Qc4 {[%emt 0:01:55]} Bh3 {[%emt 0:00:47]} 35. Qe2 {[%emt 0:02:09]} Bxg2 {[%emt 0:03:04]} 36. Kxg2 {[%emt 0:00:01]} Rh6 {[%emt 0:00:21]} 37. Rh1 {[%emt 0:01:03]} Rxh1 {[%emt 0:00:20]} 38. Kxh1 {[%emt 0:00:10]} Qh3+ {[%emt 0:01:50]} 39. Kg1 {[%emt 0:00:02]} Nf6 {[%emt 0:00:56]} 40. Nf1 {[%emt 0:05:13]} Qf5 {[%emt 0:00:18]} 41. Kg2 {[%emt 0:03:47]} Nh7 {[%emt 0:04:36]} 42. Nh2 {[%emt 0:05:03]} Nf6 {[%emt 0:04:55]} 43. Be7 {[%emt 0:01:14]} Nd5 {[%emt 0:00:31]} 44. Ba3 {[%emt 0:01:13]} Qg6 {[%emt 0:02:53]} 45. Nf1 {[%emt 0:02:12]} f5 {[%emt 0:01:21]} 46. Qc4 {[%emt 0:06:07]} Kh7 {[%emt 0:00:39]} 47. Qc5 {[%emt 0:01:07]} f4 {[%emt 0:05:26]} 48. exf4 {[%emt 0:01:43]} Nxf4+ {[%emt 0:00:10]} 49. Kg1 {[%emt 0:00:39]} Nd5 {[%emt 0:00:48]} 50. Qf8 {[%emt 0:03:20]} e3 {[%emt 0:03:44]} 51. fxe3 {[%emt 0:03:52]} Bxg3 {[%emt 0:00:36]} 52. Nxg3 {[%emt 0:01:52]} Qxg3+ {[%emt 0:00:07]} 53. Kf1 {[%emt 0:00:22]} Qh3+ {[%emt 0:00:29]} 54. Kg1 {[%emt 0:01:45]} Nxe3 {[%emt 0:01:22]} 55. Qf2 {[%emt 0:00:22]} Qg4+ {[%emt 0:00:29]} 56. Kh2 {[%emt 0:02:01]} Qh5+ {[%emt 0:01:33]} 57. Kg3 {[%emt 0:00:54]} Qg4+ {[%emt 0:01:06]} 58. Kh2 {[%emt 0:00:06]} Qxd4 {[%emt 0:00:47]} 59. Qf3 {[%emt 0:00:34]} Qh4+ {[%emt 0:00:33]} 60. Kg1 {[%emt 0:00:48]} Qg5+ {[%emt 0:06:18]} 61. Kh2 {[%emt 0:00:50]} Ng4+ {[%emt 0:00:22]} 62. Kh3 {[%emt 0:01:19]} Nf6 {[%emt 0:00:22]} 63. Be7 {[%emt 0:00:47]} Qd5 {[%emt 0:00:22]} 0-1